Workbook

Sheet Průvodce
G1: PRŮVODCE | H1: PŘÍJMY
B2: OSOBNÍ FINANČNÍ TOK
B3: Tento sešit obsahuje listy s roční, měsíční a denní finančním tokem. Zvolte typ finančního toku, který vám nejlépe vyhovuje. Pokud využijete všechny, získáte komplexní přehled.
B5: Roční finanční tok | D5: Měsíční finanční tok | F5: Denní finanční tok
B6: Zadejte částku ročního finančního toku pro různé oblasti. Můžete se podívat na měsíční rozpis, porovnat jednotlivé hodnoty a především zjistit konečný stav za rok i měsíc. | D6: Zadejte finanční tok, který generujete každý měsíc, nebo odhadněte zbývající měsíce, abyste zjistili předpokládaný finanční tok za každý měsíc daného roku. | F6: Zadejte odhadovanou částku finančního toku, který denně generujete. Pak si můžete projít odhadované měsíční a roční celkové částky. Na základě těchto informací si můžete udělat představu o svých denních výdajích v průběhu měsíce nebo roku.

Sheet Roční finanční tok
B1: OSOBNÍ FINANČNÍ TOK | G1: PRŮVODCE | H1: ROČNÍ FINANČNÍ TOK | J1: MĚSÍČNÍ FINANČNÍ TOK
B2: Celkový finanční tok k datu: | D2: =RočníFinančníTokKDatu -> 159,000.00 Kč | G2: Toto je roční odhad. Tento list vám umožní zjistit roční částky a odhadované měsíční částky. Pokud chcete přidat denní položky, použijte další listy.
B3: SOUHRN PŘÍJMŮ | F3: SOUHRN VÝDAJŮ | J3: SOUHRN ZA VOLNOU ÚTRATU | N3: SOUHRN ÚSPOR
B4: Ročně celkem: | C4: =Příjmy!C10 -> 500,000.00 Kč | F4: Ročně celkem: | G4: =Výdaje[[#Totals],[Roční ]] -> 196,000.00 Kč | J4: Ročně celkem: | K4: =VolnáÚtrata[[#Totals],[Roční ]] -> 53,000.00 Kč | N4: Ročně celkem: | O4: =Úspory[[#Totals],[Roční ]] -> 92,000.00 Kč
B5: Tato buňka obsahuje výsečový graf s příjmy z různých zdrojů. | F5: Tato buňka obsahuje výsečový graf se vzniklými výdaji. | J5: Tato buňka obsahuje výsečový graf s výdaji představujícími volnou útratu. | N5: Tato buňka obsahuje výsečový graf s úsporami a investicemi.
B6: Měsíčně celkem: | C6: =Příjmy!D10 -> 41,666.67 Kč | F6: Měsíčně celkem: | G6: =Výdaje[[#Totals],[Měsíční ]] -> 16,333.33 Kč | J6: Měsíčně celkem: | K6: =VolnáÚtrata[[#Totals],[Měsíční ]] -> 4,416.67 Kč | N6: Měsíčně celkem: | O6: =Úspory!D9 -> 7,666.67 Kč

Sheet Měsíční finanční tok
B1: OSOBNÍ FINANČNÍ TOK | H1: PRŮVODCE | I1: ROČNÍ FINANČNÍ TOK | J1: MĚSÍČNÍ FINANČNÍ TOK | K1: DENNÍ SOUHRN
B2: Celkový měsíční finanční tok: | D2: =MěsíčníFinančníTokKDatu -> 73,520.00 Kč | F2: POZNÁMKA: U denních položek odhadněte měsíční částku nebo hodnotu, kterou pak zadejte do sloupce příslušného měsíce.
B3: Typ | C3: Popis | D3: Leden | E3: Únor | F3: Březen | G3: Duben | H3: Květen | I3: Červen | J3: Červenec | K3: Srpen | L3: Září | M3: Říjen | N3: Listopad | O3: Prosinec | P3: Celkem
B4: Příjmy | C4: Plat | D4: 30,000.00 Kč | E4: 30,000.00 Kč | F4: 30,000.00 Kč | G4: 30,000.00 Kč | H4: 30,000.00 Kč | I4: 30,000.00 Kč | P4: =SUM(Měsíční[[#This Row],[Leden]:[Prosinec]]) -> 180,000.00 Kč
B5: Příjmy | C5: Provize a odměny | D5: 1,600.00 Kč | E5: 1,600.00 Kč | F5: 2,000.00 Kč | G5: 800.00 Kč | H5: 0.00 Kč | I5: 2,400.00 Kč | P5: =SUM(Měsíční[[#This Row],[Leden]:[Prosinec]]) -> 8,400.00 Kč
B6: Příjmy | C6: Ostatní 1 | D6: 10,000.00 Kč | E6: 10,000.00 Kč | F6: 10,000.00 Kč | G6: 10,000.00 Kč | H6: 10,000.00 Kč | I6: 10,000.00 Kč | P6: =SUM(Měsíční[[#This Row],[Leden]:[Prosinec]]) -> 60,000.00 Kč
B7: Příjmy | C7: Ostatní 2 | D7: 0.00 Kč | E7: 0.00 Kč | F7: 0.00 Kč | G7: 0.00 Kč | H7: 0.00 Kč | I7: 0.00 Kč | P7: =SUM(Měsíční[[#This Row],[Leden]:[Prosinec]]) -> 0.00 Kč
B8: Příjmy | C8: Ostatní 3 | D8: 0.00 Kč | E8: 0.00 Kč | F8: 0.00 Kč | G8: 0.00 Kč | H8: 0.00 Kč | I8: 0.00 Kč | P8: =SUM(Měsíční[[#This Row],[Leden]:[Prosinec]]) -> 0.00 Kč
B9: Příjmy | C9: Ostatní 4 | D9: 0.00 Kč | E9: 0.00 Kč | F9: 0.00 Kč | G9: 0.00 Kč | H9: 0.00 Kč | I9: 0.00 Kč | P9: =SUM(Měsíční[[#This Row],[Leden]:[Prosinec]]) -> 0.00 Kč
B10: Výdaje | C10: Sociální/zdravotní pojištění | D10: 5,000.00 Kč | E10: 5,000.00 Kč | F10: 5,000.00 Kč | G10: 5,000.00 Kč | H10: 5,000.00 Kč | I10: 5,000.00 Kč | P10: =SUM(Měsíční[[#This Row],[Leden]:[Prosinec]]) -> 30,000.00 Kč
B11: Výdaje | C11: Daň z příjmu | D11: 833.33 Kč | E11: 833.33 Kč | F11: 833.33 Kč | G11: 833.33 Kč | H11: 833.33 Kč | I11: 833.33 Kč | P11: =SUM(Měsíční[[#This Row],[Leden]:[Prosinec]]) -> 5,000.00 Kč
B12: Výdaje | C12: Silniční daň/poplatky | D12: 66.67 Kč | E12: 66.67 Kč | F12: 66.67 Kč | G12: 66.67 Kč | H12: 66.67 Kč | I12: 66.67 Kč | P12: =SUM(Měsíční[[#This Row],[Leden]:[Prosinec]]) -> 400.00 Kč
B13: Výdaje | C13: Splátka za vozidlo | D13: 1,333.33 Kč | E13: 1,333.33 Kč | F13: 1,333.33 Kč | G13: 1,333.33 Kč | H13: 1,333.33 Kč | I13: 1,333.33 Kč | P13: =SUM(Měsíční[[#This Row],[Leden]:[Prosinec]]) -> 8,000.00 Kč
B14: Výdaje | C14: Hypotéka/nájem | D14: 5,000.00 Kč | E14: 5,000.00 Kč | F14: 5,000.00 Kč | G14: 5,000.00 Kč | H14: 5,000.00 Kč | I14: 5,000.00 Kč | P14: =SUM(Měsíční[[#This Row],[Leden]:[Prosinec]]) -> 30,000.00 Kč
B15: Výdaje | C15: Pojištění | D15: 100.00 Kč | E15: 100.00 Kč | F15: 100.00 Kč | G15: 100.00 Kč | H15: 100.00 Kč | I15: 100.00 Kč | P15: =SUM(Měsíční[[#This Row],[Leden]:[Prosinec]]) -> 600.00 Kč
B16: Výdaje | C16: Elektřina | D16: 400.00 Kč | E16: 400.00 Kč | F16: 400.00 Kč | G16: 400.00 Kč | H16: 400.00 Kč | I16: 400.00 Kč | P16: =SUM(Měsíční[[#This Row],[Leden]:[Prosinec]]) -> 2,400.00 Kč
B17: Výdaje | C17: Plyn | D17: 200.00 Kč | E17: 200.00 Kč | F17: 200.00 Kč | G17: 200.00 Kč | H17: 200.00 Kč | I17: 200.00 Kč | P17: =SUM(Měsíční[[#This Row],[Leden]:[Prosinec]]) -> 1,200.00 Kč
B18: Výdaje | C18: Vodné | D18: 200.00 Kč | E18: 200.00 Kč | F18: 200.00 Kč | G18: 200.00 Kč | H18: 200.00 Kč | I18: 200.00 Kč | P18: =SUM(Měsíční[[#This Row],[Leden]:[Prosinec]]) -> 1,200.00 Kč
B19: Výdaje | C19: Stočné | D19: 100.00 Kč | E19: 100.00 Kč | F19: 100.00 Kč | G19: 100.00 Kč | H19: 100.00 Kč | I19: 100.00 Kč | P19: =SUM(Měsíční[[#This Row],[Leden]:[Prosinec]]) -> 600.00 Kč
B20: Výdaje | C20: Odpady | D20: 50.00 Kč | E20: 50.00 Kč | F20: 50.00 Kč | G20: 50.00 Kč | H20: 50.00 Kč | I20: 50.00 Kč | P20: =SUM(Měsíční[[#This Row],[Leden]:[Prosinec]]) -> 300.00 Kč
B21: Výdaje | C21: Telefon | D21: 200.00 Kč | E21: 200.00 Kč | F21: 200.00 Kč | G21: 200.00 Kč | H21: 200.00 Kč | I21: 200.00 Kč | P21: =SUM(Měsíční[[#This Row],[Leden]:[Prosinec]]) -> 1,200.00 Kč
B22: Výdaje | C22: Internet | D22: 200.00 Kč | E22: 200.00 Kč | F22: 200.00 Kč | G22: 200.00 Kč | H22: 200.00 Kč | I22: 200.00 Kč | P22: =SUM(Měsíční[[#This Row],[Leden]:[Prosinec]]) -> 1,200.00 Kč
B23: Výdaje | C23: Životní/úrazové pojištění | D23: 500.00 Kč | E23: 500.00 Kč | F23: 500.00 Kč | G23: 500.00 Kč | H23: 500.00 Kč | I23: 500.00 Kč | P23: =SUM(Měsíční[[#This Row],[Leden]:[Prosinec]]) -> 3,000.00 Kč
B24: Výdaje | C24: Jídlo | D24: 1,600.00 Kč | E24: 2,000.00 Kč | F24: 1,800.00 Kč | G24: 1,600.00 Kč | H24: 1,800.00 Kč | I24: 1,700.00 Kč | P24: =SUM(Měsíční[[#This Row],[Leden]:[Prosinec]]) -> 10,500.00 Kč
B25: Výdaje | C25: Oblečení | D25: 200.00 Kč | E25: 300.00 Kč | F25: 400.00 Kč | G25: 300.00 Kč | H25: 500.00 Kč | I25: 300.00 Kč | P25: =SUM(Měsíční[[#This Row],[Leden]:[Prosinec]]) -> 2,000.00 Kč
B26: Výdaje | C26: Léky/recepty/zubní péče | D26: 200.00 Kč | E26: 40.00 Kč | F26: 100.00 Kč | G26: 100.00 Kč | H26: 80.00 Kč | I26: 280.00 Kč | P26: =SUM(Měsíční[[#This Row],[Leden]:[Prosinec]]) -> 800.00 Kč
B27: Výdaje | C27: Autobus | D27: 120.00 Kč | E27: 120.00 Kč | F27: 120.00 Kč | G27: 80.00 Kč | H27: 120.00 Kč | I27: 120.00 Kč | P27: =SUM(Měsíční[[#This Row],[Leden]:[Prosinec]]) -> 680.00 Kč
B28: Výdaje | C28: Ostatní 2 | D28: 0.00 Kč | E28: 0.00 Kč | F28: 0.00 Kč | G28: 0.00 Kč | H28: 0.00 Kč | I28: 0.00 Kč | P28: =SUM(Měsíční[[#This Row],[Leden]:[Prosinec]]) -> 0.00 Kč
B29: Výdaje | C29: Ostatní 3 | D29: 0.00 Kč | E29: 0.00 Kč | F29: 0.00 Kč | G29: 0.00 Kč | H29: 0.00 Kč | I29: 0.00 Kč | P29: =SUM(Měsíční[[#This Row],[Leden]:[Prosinec]]) -> 0.00 Kč
B30: Výdaje | C30: Ostatní 4 | D30: 0.00 Kč | E30: 0.00 Kč | F30: 0.00 Kč | G30: 0.00 Kč | H30: 0.00 Kč | I30: 0.00 Kč | P30: =SUM(Měsíční[[#This Row],[Leden]:[Prosinec]]) -> 0.00 Kč
B31: Volná útrata | C31: Restaurace | D31: 200.00 Kč | E31: 600.00 Kč | F31: 400.00 Kč | G31: 200.00 Kč | H31: 600.00 Kč | I31: 400.00 Kč | P31: =SUM(Měsíční[[#This Row],[Leden]:[Prosinec]]) -> 2,400.00 Kč
B32: Volná útrata | C32: Dárky | D32: 100.00 Kč | E32: 300.00 Kč | F32: 200.00 Kč | G32: 100.00 Kč | H32: 300.00 Kč | I32: 200.00 Kč | P32: =SUM(Měsíční[[#This Row],[Leden]:[Prosinec]]) -> 1,200.00 Kč
B33: Volná útrata | C33: Cestování | D33: 0.00 Kč | E33: 0.00 Kč | F33: 4,000.00 Kč | G33: 0.00 Kč | H33: 0.00 Kč | I33: 4,000.00 Kč | P33: =SUM(Měsíční[[#This Row],[Leden]:[Prosinec]]) -> 8,000.00 Kč
B34: Volná útrata | C34: Zábava | D34: 200.00 Kč | E34: 600.00 Kč | F34: 400.00 Kč | G34: 200.00 Kč | H34: 600.00 Kč | I34: 400.00 Kč | P34: =SUM(Měsíční[[#This Row],[Leden]:[Prosinec]]) -> 2,400.00 Kč
B35: Volná útrata | C35: Osobní péče | D35: 60.00 Kč | E35: 100.00 Kč | F35: 140.00 Kč | G35: 60.00 Kč | H35: 100.00 Kč | I35: 140.00 Kč | P35: =SUM(Měsíční[[#This Row],[Leden]:[Prosinec]]) -> 600.00 Kč
B36: Volná útrata | C36: Nákupy | D36: 400.00 Kč | E36: 800.00 Kč | F36: 600.00 Kč | G36: 700.00 Kč | H36: 600.00 Kč | I36: 700.00 Kč | P36: =SUM(Měsíční[[#This Row],[Leden]:[Prosinec]]) -> 3,800.00 Kč
B37: Volná útrata | C37: Charita | D37: 200.00 Kč | E37: 200.00 Kč | F37: 200.00 Kč | G37: 200.00 Kč | H37: 200.00 Kč | I37: 200.00 Kč | P37: =SUM(Měsíční[[#This Row],[Leden]:[Prosinec]]) -> 1,200.00 Kč
B38: Volná útrata | C38: Členství/předplatná | D38: 100.00 Kč | E38: 100.00 Kč | F38: 100.00 Kč | G38: 100.00 Kč | H38: 100.00 Kč | I38: 100.00 Kč | P38: =SUM(Měsíční[[#This Row],[Leden]:[Prosinec]]) -> 600.00 Kč
B39: Volná útrata | C39: Úpravy domácnosti | D39: 1,600.00 Kč | E39: 1,600.00 Kč | F39: 1,600.00 Kč | G39: 1,600.00 Kč | H39: 1,600.00 Kč | I39: 1,600.00 Kč | P39: =SUM(Měsíční[[#This Row],[Leden]:[Prosinec]]) -> 9,600.00 Kč
B40: Volná útrata | C40: Ostatní 1 | D40: 0.00 Kč | E40: 0.00 Kč | F40: 0.00 Kč | G40: 0.00 Kč | H40: 0.00 Kč | I40: 0.00 Kč | P40: =SUM(Měsíční[[#This Row],[Leden]:[Prosinec]]) -> 0.00 Kč
B41: Volná útrata | C41: Ostatní 2 | D41: 0.00 Kč | E41: 0.00 Kč | F41: 0.00 Kč | G41: 0.00 Kč | H41: 0.00 Kč | I41: 0.00 Kč | P41: =SUM(Měsíční[[#This Row],[Leden]:[Prosinec]]) -> 0.00 Kč
B42: Úspory | C42: Hotovostní rezerva | D42: 1,666.67 Kč | E42: 1,666.67 Kč | F42: 1,666.67 Kč | G42: 1,666.67 Kč | H42: 1,666.67 Kč | I42: 1,666.67 Kč | P42: =SUM(Měsíční[[#This Row],[Leden]:[Prosinec]]) -> 10,000.00 Kč
B43: Úspory | C43: Spoření (penzijní atd.) | D43: 4,000.00 Kč | E43: 4,000.00 Kč | F43: 4,000.00 Kč | G43: 4,000.00 Kč | H43: 4,000.00 Kč | I43: 4,000.00 Kč | P43: =SUM(Měsíční[[#This Row],[Leden]:[Prosinec]]) -> 24,000.00 Kč
B44: Úspory | C44: Spořicí/investiční účet | D44: 2,000.00 Kč | E44: 2,000.00 Kč | F44: 2,000.00 Kč | G44: 2,000.00 Kč | H44: 2,000.00 Kč | I44: 2,000.00 Kč | P44: =SUM(Měsíční[[#This Row],[Leden]:[Prosinec]]) -> 12,000.00 Kč
B45: Úspory | C45: Ostatní 1 | D45: 0.00 Kč | E45: 0.00 Kč | F45: 0.00 Kč | G45: 0.00 Kč | H45: 0.00 Kč | I45: 0.00 Kč | P45: =SUM(Měsíční[[#This Row],[Leden]:[Prosinec]]) -> 0.00 Kč
B46: Úspory | C46: Ostatní 2 | D46: 0.00 Kč | E46: 0.00 Kč | F46: 0.00 Kč | G46: 0.00 Kč | H46: 0.00 Kč | I46: 0.00 Kč | P46: =SUM(Měsíční[[#This Row],[Leden]:[Prosinec]]) -> 0.00 Kč
B47: Celkem | D47: =SUMIF(Měsíční[Typ],"Příjmy",Měsíční[Leden])-SUMIF(Měsíční[Typ],"<>Příjmy",Měsíční[Leden]) -> 14,770.00 Kč | E47: =SUMIF(Měsíční[Typ],"Příjmy",Měsíční[Únor])-SUMIF(Měsíční[Typ],"<>Příjmy",Měsíční[Únor]) -> 12,990.00 Kč | F47: =SUMIF(Měsíční[Typ],"Příjmy",Měsíční[Březen])-SUMIF(Měsíční[Typ],"<>Příjmy",Měsíční[Březen]) -> 10,090.00 Kč | G47: =SUMIF(Měsíční[Typ],"Příjmy",Měsíční[Duben])-SUMIF(Měsíční[Typ],"<>Příjmy",Měsíční[Duben]) -> 13,710.00 Kč | H47: =SUMIF(Měsíční[Typ],"Příjmy",Měsíční[Květen])-SUMIF(Měsíční[Typ],"<>Příjmy",Měsíční[Květen]) -> 11,550.00 Kč | I47: =SUMIF(Měsíční[Typ],"Příjmy",Měsíční[Červen])-SUMIF(Měsíční[Typ],"<>Příjmy",Měsíční[Červen]) -> 10,410.00 Kč | J47: =SUMIF(Měsíční[Typ],"Příjmy",Měsíční[Červenec])-SUMIF(Měsíční[Typ],"<>Příjmy",Měsíční[Červenec]) -> 0.00 Kč | K47: =SUMIF(Měsíční[Typ],"Příjmy",Měsíční[Srpen])-SUMIF(Měsíční[Typ],"<>Příjmy",Měsíční[Srpen]) -> 0.00 Kč | L47: =SUMIF(Měsíční[Typ],"Příjmy",Měsíční[Září])-SUMIF(Měsíční[Typ],"<>Příjmy",Měsíční[Září]) -> 0.00 Kč | M47: =SUMIF(Měsíční[Typ],"Příjmy",Měsíční[Říjen])-SUMIF(Měsíční[Typ],"<>Příjmy",Měsíční[Říjen]) -> 0.00 Kč | N47: =SUMIF(Měsíční[Typ],"Příjmy",Měsíční[Listopad])-SUMIF(Měsíční[Typ],"<>Příjmy",Měsíční[Listopad]) -> 0.00 Kč | O47: =SUMIF(Měsíční[Typ],"Příjmy",Měsíční[Prosinec])-SUMIF(Měsíční[Typ],"<>Příjmy",Měsíční[Prosinec]) -> 0.00 Kč | P47: =SUMIF(Měsíční[Typ],"Příjmy",Měsíční[Celkem])-SUMIF(Měsíční[Typ],"<>Příjmy",Měsíční[Celkem]) -> 73,520.00 Kč

Sheet Denní souhrn
B1: OSOBNÍ FINANČNÍ TOK | F1: PRŮVODCE | G1: MĚSÍČNÍ FINANČNÍ TOK | H1: DENNÍ SOUHRN | I1: PŘÍJMY
B2: Celková dostupná hotovost: | D2: =DenníFinančníTok -> 2,311.36 Kč | F2: POZNÁMKA: Pokud chcete do tabulky přidat denní položky, odhadněte jejich měsíční částku nebo hodnotu, kterou pak zadejte do sloupce příslušného měsíce.
B3: DENNÍ SOUHRN
B4: CELKOVÉ ČÁSTKY | C4: Denní | D4: Měsíční | E4: Roční
B5: Příjmy | C5: =SUMIF(Denní[Typ],$B5,Denní[Denní]) -> 1,369.88 Kč | D5: =SUMIF(Denní[Typ],$B5,Denní[Měsíční]) -> 41,667.18 Kč | E5: =SUMIF(Denní[Typ],$B5,Denní[Roční]) -> 500,006.20 Kč
B6: Výdaje | C6: =SUMIF(Denní[Typ],$B6,Denní[Denní]) -> 544.24 Kč | D6: =SUMIF(Denní[Typ],$B6,Denní[Měsíční]) -> 16,553.97 Kč | E6: =SUMIF(Denní[Typ],$B6,Denní[Roční]) -> 198,647.60 Kč
B7: Volná útrata | C7: =SUMIF(Denní[Typ],$B7,Denní[Denní]) -> 145.16 Kč | D7: =SUMIF(Denní[Typ],$B7,Denní[Měsíční]) -> 4,415.28 Kč | E7: =SUMIF(Denní[Typ],$B7,Denní[Roční]) -> 52,983.40 Kč
B8: Úspory | C8: =SUMIF(Denní[Typ],$B8,Denní[Denní]) -> 252.08 Kč | D8: =SUMIF(Denní[Typ],$B8,Denní[Měsíční]) -> 7,667.43 Kč | E8: =SUMIF(Denní[Typ],$B8,Denní[Roční]) -> 92,009.20 Kč
B9: Typ | C9: Popis | D9: Denní | E9: Měsíční | F9: Roční
B10: Příjmy | C10: Plat | D10: 986.32 Kč | E10: =Denní[[#This Row],[Roční]]/12 -> 30,000.57 Kč | F10: =Denní[[#This Row],[Denní]]*365 -> 360,006.80 Kč
B11: Příjmy | C11: Provize a odměny | D11: 54.80 Kč | E11: =Denní[[#This Row],[Roční]]/12 -> 1,666.83 Kč | F11: =Denní[[#This Row],[Denní]]*365 -> 20,002.00 Kč
B12: Příjmy | C12: Ostatní 1 | D12: 328.76 Kč | E12: =Denní[[#This Row],[Roční]]/12 -> 9,999.78 Kč | F12: =Denní[[#This Row],[Denní]]*365 -> 119,997.40 Kč
B13: Příjmy | C13: Ostatní 2 | D13: 0.00 Kč | E13: =Denní[[#This Row],[Roční]]/12 -> 0.00 Kč | F13: =Denní[[#This Row],[Denní]]*365 -> 0.00 Kč
B14: Příjmy | C14: Ostatní 3 | D14: 0.00 Kč | E14: =Denní[[#This Row],[Roční]]/12 -> 0.00 Kč | F14: =Denní[[#This Row],[Denní]]*365 -> 0.00 Kč
B15: Příjmy | C15: Ostatní 4 | D15: 0.00 Kč | E15: =Denní[[#This Row],[Roční]]/12 -> 0.00 Kč | F15: =Denní[[#This Row],[Denní]]*365 -> 0.00 Kč
B16: Výdaje | C16: Sociální/zdravotní pojištění | D16: 164.40 Kč | E16: =Denní[[#This Row],[Roční]]/12 -> 5,000.50 Kč | F16: =Denní[[#This Row],[Denní]]*365 -> 60,006.00 Kč
B17: Výdaje | C17: Daň z příjmu | D17: 27.40 Kč | E17: =Denní[[#This Row],[Roční]]/12 -> 833.42 Kč | F17: =Denní[[#This Row],[Denní]]*365 -> 10,001.00 Kč
B18: Výdaje | C18: Silniční daň/poplatky | D18: 2.20 Kč | E18: =Denní[[#This Row],[Roční]]/12 -> 66.92 Kč | F18: =Denní[[#This Row],[Denní]]*365 -> 803.00 Kč
B19: Výdaje | C19: Splátka za vozidlo | D19: 43.84 Kč | E19: =Denní[[#This Row],[Roční]]/12 -> 1,333.47 Kč | F19: =Denní[[#This Row],[Denní]]*365 -> 16,001.60 Kč
B20: Výdaje | C20: Hypotéka/nájem | D20: 164.40 Kč | E20: =Denní[[#This Row],[Roční]]/12 -> 5,000.50 Kč | F20: =Denní[[#This Row],[Denní]]*365 -> 60,006.00 Kč
B21: Výdaje | C21: Pojištění | D21: 2.72 Kč | E21: =Denní[[#This Row],[Roční]]/12 -> 82.73 Kč | F21: =Denní[[#This Row],[Denní]]*365 -> 992.80 Kč
B22: Výdaje | C22: Elektřina | D22: 13.16 Kč | E22: =Denní[[#This Row],[Roční]]/12 -> 400.28 Kč | F22: =Denní[[#This Row],[Denní]]*365 -> 4,803.40 Kč
B23: Výdaje | C23: Plyn | D23: 6.56 Kč | E23: =Denní[[#This Row],[Roční]]/12 -> 199.53 Kč | F23: =Denní[[#This Row],[Denní]]*365 -> 2,394.40 Kč
B24: Výdaje | C24: Vodné | D24: 6.56 Kč | E24: =Denní[[#This Row],[Roční]]/12 -> 199.53 Kč | F24: =Denní[[#This Row],[Denní]]*365 -> 2,394.40 Kč
B25: Výdaje | C25: Stočné | D25: 3.28 Kč | E25: =Denní[[#This Row],[Roční]]/12 -> 99.77 Kč | F25: =Denní[[#This Row],[Denní]]*365 -> 1,197.20 Kč
B26: Výdaje | C26: Odpady | D26: 1.64 Kč | E26: =Denní[[#This Row],[Roční]]/12 -> 49.88 Kč | F26: =Denní[[#This Row],[Denní]]*365 -> 598.60 Kč
B27: Výdaje | C27: Telefon | D27: 6.56 Kč | E27: =Denní[[#This Row],[Roční]]/12 -> 199.53 Kč | F27: =Denní[[#This Row],[Denní]]*365 -> 2,394.40 Kč
B28: Výdaje | C28: Internet | D28: 6.56 Kč | E28: =Denní[[#This Row],[Roční]]/12 -> 199.53 Kč | F28: =Denní[[#This Row],[Denní]]*365 -> 2,394.40 Kč
B29: Výdaje | C29: Životní/úrazové pojištění | D29: 16.44 Kč | E29: =Denní[[#This Row],[Roční]]/12 -> 500.05 Kč | F29: =Denní[[#This Row],[Denní]]*365 -> 6,000.60 Kč
B30: Výdaje | C30: Jídlo | D30: 54.80 Kč | E30: =Denní[[#This Row],[Roční]]/12 -> 1,666.83 Kč | F30: =Denní[[#This Row],[Denní]]*365 -> 20,002.00 Kč
B31: Výdaje | C31: Oblečení | D31: 13.16 Kč | E31: =Denní[[#This Row],[Roční]]/12 -> 400.28 Kč | F31: =Denní[[#This Row],[Denní]]*365 -> 4,803.40 Kč
B32: Výdaje | C32: Léky/recepty/zubní péče | D32: 6.56 Kč | E32: =Denní[[#This Row],[Roční]]/12 -> 199.53 Kč | F32: =Denní[[#This Row],[Denní]]*365 -> 2,394.40 Kč
B33: Výdaje | C33: Autobus | D33: 4.00 Kč | E33: =Denní[[#This Row],[Roční]]/12 -> 121.67 Kč | F33: =Denní[[#This Row],[Denní]]*365 -> 1,460.00 Kč
B34: Výdaje | C34: Ostatní 2 | D34: 0.00 Kč | E34: =Denní[[#This Row],[Roční]]/12 -> 0.00 Kč | F34: =Denní[[#This Row],[Denní]]*365 -> 0.00 Kč
B35: Výdaje | C35: Ostatní 3 | D35: 0.00 Kč | E35: =Denní[[#This Row],[Roční]]/12 -> 0.00 Kč | F35: =Denní[[#This Row],[Denní]]*365 -> 0.00 Kč
B36: Výdaje | C36: Ostatní 4 | D36: 0.00 Kč | E36: =Denní[[#This Row],[Roční]]/12 -> 0.00 Kč | F36: =Denní[[#This Row],[Denní]]*365 -> 0.00 Kč
B37: Volná útrata | C37: Restaurace | D37: 13.16 Kč | E37: =Denní[[#This Row],[Roční]]/12 -> 400.28 Kč | F37: =Denní[[#This Row],[Denní]]*365 -> 4,803.40 Kč
B38: Volná útrata | C38: Dárky | D38: 6.56 Kč | E38: =Denní[[#This Row],[Roční]]/12 -> 199.53 Kč | F38: =Denní[[#This Row],[Denní]]*365 -> 2,394.40 Kč
B39: Volná útrata | C39: Cestování | D39: 24.64 Kč | E39: =Denní[[#This Row],[Roční]]/12 -> 749.47 Kč | F39: =Denní[[#This Row],[Denní]]*365 -> 8,993.60 Kč
B40: Volná útrata | C40: Zábava | D40: 13.16 Kč | E40: =Denní[[#This Row],[Roční]]/12 -> 400.28 Kč | F40: =Denní[[#This Row],[Denní]]*365 -> 4,803.40 Kč
B41: Volná útrata | C41: Osobní péče | D41: 3.28 Kč | E41: =Denní[[#This Row],[Roční]]/12 -> 99.77 Kč | F41: =Denní[[#This Row],[Denní]]*365 -> 1,197.20 Kč
B42: Volná útrata | C42: Nákupy | D42: 21.92 Kč | E42: =Denní[[#This Row],[Roční]]/12 -> 666.73 Kč | F42: =Denní[[#This Row],[Denní]]*365 -> 8,000.80 Kč
B43: Volná útrata | C43: Charita | D43: 6.56 Kč | E43: =Denní[[#This Row],[Roční]]/12 -> 199.53 Kč | F43: =Denní[[#This Row],[Denní]]*365 -> 2,394.40 Kč
B44: Volná útrata | C44: Členství/předplatná | D44: 3.28 Kč | E44: =Denní[[#This Row],[Roční]]/12 -> 99.77 Kč | F44: =Denní[[#This Row],[Denní]]*365 -> 1,197.20 Kč
B45: Volná útrata | C45: Úpravy domácnosti | D45: 52.60 Kč | E45: =Denní[[#This Row],[Roční]]/12 -> 1,599.92 Kč | F45: =Denní[[#This Row],[Denní]]*365 -> 19,199.00 Kč
B46: Volná útrata | C46: Ostatní 1 | D46: 0.00 Kč | E46: =Denní[[#This Row],[Roční]]/12 -> 0.00 Kč | F46: =Denní[[#This Row],[Denní]]*365 -> 0.00 Kč
B47: Volná útrata | C47: Ostatní 2 | D47: 0.00 Kč | E47: =Denní[[#This Row],[Roční]]/12 -> 0.00 Kč | F47: =Denní[[#This Row],[Denní]]*365 -> 0.00 Kč
B48: Úspory | C48: Hotovostní rezerva | D48: 54.80 Kč | E48: =Denní[[#This Row],[Roční]]/12 -> 1,666.83 Kč | F48: =Denní[[#This Row],[Denní]]*365 -> 20,002.00 Kč
B49: Úspory | C49: Spoření (penzijní atd.) | D49: 131.52 Kč | E49: =Denní[[#This Row],[Roční]]/12 -> 4,000.40 Kč | F49: =Denní[[#This Row],[Denní]]*365 -> 48,004.80 Kč
B50: Úspory | C50: Spořicí/investiční účet | D50: 65.76 Kč | E50: =Denní[[#This Row],[Roční]]/12 -> 2,000.20 Kč | F50: =Denní[[#This Row],[Denní]]*365 -> 24,002.40 Kč
B51: Úspory | C51: Ostatní 1 | D51: 0.00 Kč | E51: =Denní[[#This Row],[Roční]]/12 -> 0.00 Kč | F51: =Denní[[#This Row],[Denní]]*365 -> 0.00 Kč
B52: Úspory | C52: Ostatní 2 | D52: 0.00 Kč | E52: =Denní[[#This Row],[Roční]]/12 -> 0.00 Kč | F52: =Denní[[#This Row],[Denní]]*365 -> 0.00 Kč
B53: Celkem | D53: =SUMIF(Denní[Typ],"Příjmy",Denní[Denní])-SUMIF(Denní[Typ],"<>Příjmy",Denní[Denní]) -> 428.40 Kč | E53: =SUMIF(Denní[Typ],"Příjmy",Denní[Měsíční])-SUMIF(Denní[Typ],"<>Příjmy",Denní[Měsíční]) -> 13,030.50 Kč | F53: =SUMIF(Denní[Typ],"Příjmy",Denní[Roční])-SUMIF(Denní[Typ],"<>Příjmy",Denní[Roční]) -> 156,366.00 Kč

Sheet Příjmy
B1: OSOBNÍ FINANČNÍ TOK | F1: PRŮVODCE | G1: DENNÍ SOUHRN | H1: PŘÍJMY | I1: VÝDAJE
B2: Celkový finanční tok k datu: | D2: =RočníFinančníTokKDatu -> 159,000.00 Kč | F2: Toto je roční odhad. Na tomto listu si můžete zjistit roční částky a odhadované měsíční částky. Pokud chcete do tabulky přidat denní položky, odhadněte jejich roční částku nebo hodnotu, kterou pak zadejte do sloupce Roční.
B3: Příjmy | C3: Roční | D3: Měsíční
B4: Plat | C4: 360,000.00 Kč | D4: =Příjmy[[#This Row],[Roční ]]/12 -> 30,000.00 Kč
B5: Provize a odměny | C5: 20,000.00 Kč | D5: =Příjmy[[#This Row],[Roční ]]/12 -> 1,666.67 Kč
B6: Ostatní 1 | C6: 120,000.00 Kč | D6: =Příjmy[[#This Row],[Roční ]]/12 -> 10,000.00 Kč
B7: Ostatní 2 | D7: =Příjmy[[#This Row],[Roční ]]/12 -> 0.00 Kč
B8: Ostatní 3 | D8: =Příjmy[[#This Row],[Roční ]]/12 -> 0.00 Kč
B9: Ostatní 4 | D9: =Příjmy[[#This Row],[Roční ]]/12 -> 0.00 Kč
B10: Celkem | C10: =SUBTOTAL(109,Příjmy[[Roční ]]) -> 500,000.00 Kč | D10: =SUBTOTAL(109,Příjmy[[Měsíční ]]) -> 41,666.67 Kč

Sheet Výdaje
B1: OSOBNÍ FINANČNÍ TOK | F1: PRŮVODCE | G1: PŘÍJMY | H1: VÝDAJE | I1: VOLNÁ ÚTRATA
B2: Celkový finanční tok k datu: | D2: =RočníFinančníTokKDatu -> 159,000.00 Kč | F2: Toto je roční odhad. Na tomto listu si můžete zjistit roční částky a odhadované měsíční částky. Pokud chcete do tabulky přidat denní položky, odhadněte jejich roční částku nebo hodnotu, kterou pak zadejte do sloupce Roční.
B3: Výdaje | C3: Roční | D3: Měsíční
B4: Sociální/zdravotní pojištění | C4: 60,000.00 Kč | D4: =Výdaje[[#This Row],[Roční ]]/12 -> 5,000.00 Kč
B5: Daň z příjmu | C5: 10,000.00 Kč | D5: =Výdaje[[#This Row],[Roční ]]/12 -> 833.33 Kč
B6: Silniční daň/poplatky | C6: 800.00 Kč | D6: =Výdaje[[#This Row],[Roční ]]/12 -> 66.67 Kč
B7: Splátka za vozidlo | C7: 16,000.00 Kč | D7: =Výdaje[[#This Row],[Roční ]]/12 -> 1,333.33 Kč
B8: Hypotéka/nájem | C8: 60,000.00 Kč | D8: =Výdaje[[#This Row],[Roční ]]/12 -> 5,000.00 Kč
B9: Pojištění | C9: 1,000.00 Kč | D9: =Výdaje[[#This Row],[Roční ]]/12 -> 83.33 Kč
B10: Elektřina | C10: 4,800.00 Kč | D10: =Výdaje[[#This Row],[Roční ]]/12 -> 400.00 Kč
B11: Plyn | C11: 2,400.00 Kč | D11: =Výdaje[[#This Row],[Roční ]]/12 -> 200.00 Kč
B12: Vodné/stočné | C12: 2,400.00 Kč | D12: =Výdaje[[#This Row],[Roční ]]/12 -> 200.00 Kč
B13: Odpady | C13: 600.00 Kč | D13: =Výdaje[[#This Row],[Roční ]]/12 -> 50.00 Kč
B14: Telefon | C14: 2,400.00 Kč | D14: =Výdaje[[#This Row],[Roční ]]/12 -> 200.00 Kč
B15: Internet | C15: 2,400.00 Kč | D15: =Výdaje[[#This Row],[Roční ]]/12 -> 200.00 Kč
B16: Životní/úrazové pojištění | C16: 6,000.00 Kč | D16: =Výdaje[[#This Row],[Roční ]]/12 -> 500.00 Kč
B17: Jídlo | C17: 20,000.00 Kč | D17: =Výdaje[[#This Row],[Roční ]]/12 -> 1,666.67 Kč
B18: Oblečení | C18: 4,800.00 Kč | D18: =Výdaje[[#This Row],[Roční ]]/12 -> 400.00 Kč
B19: Léky/recepty/zubní péče | C19: 2,400.00 Kč | D19: =Výdaje[[#This Row],[Roční ]]/12 -> 200.00 Kč
B20: Ostatní 1 | D20: =Výdaje[[#This Row],[Roční ]]/12 -> 0.00 Kč
B21: Ostatní 2 | D21: =Výdaje[[#This Row],[Roční ]]/12 -> 0.00 Kč
B22: Celkem | C22: =SUBTOTAL(109,Výdaje[[Roční ]]) -> 196,000.00 Kč | D22: =SUBTOTAL(109,Výdaje[[Měsíční ]]) -> 16,333.33 Kč

Sheet Volná útrata
B1: OSOBNÍ FINANČNÍ TOK | F1: PRŮVODCE | G1: VÝDAJE | H1: VOLNÁ ÚTRATA | I1: ÚSPORY
B2: Celkový finanční tok k datu: | D2: =RočníFinančníTokKDatu -> 159,000.00 Kč | F2: Toto je roční odhad. Na tomto listu si můžete zjistit roční částky a odhadované měsíční částky. Pokud chcete do tabulky přidat denní položky, odhadněte jejich roční částku nebo hodnotu, kterou pak zadejte do sloupce Roční.
B3: Výdaje představující volnou útratu | C3: Roční | D3: Měsíční
B4: Restaurace | C4: 4,800.00 Kč | D4: =VolnáÚtrata[[#This Row],[Roční ]]/12 -> 400.00 Kč
B5: Dárky | C5: 2,400.00 Kč | D5: =VolnáÚtrata[[#This Row],[Roční ]]/12 -> 200.00 Kč
B6: Cestování | C6: 9,000.00 Kč | D6: =VolnáÚtrata[[#This Row],[Roční ]]/12 -> 750.00 Kč
B7: Zábava | C7: 4,800.00 Kč | D7: =VolnáÚtrata[[#This Row],[Roční ]]/12 -> 400.00 Kč
B8: Osobní péče | C8: 1,200.00 Kč | D8: =VolnáÚtrata[[#This Row],[Roční ]]/12 -> 100.00 Kč
B9: Nákupy | C9: 8,000.00 Kč | D9: =VolnáÚtrata[[#This Row],[Roční ]]/12 -> 666.67 Kč
B10: Charita | C10: 2,400.00 Kč | D10: =VolnáÚtrata[[#This Row],[Roční ]]/12 -> 200.00 Kč
B11: Členství/předplatná | C11: 1,200.00 Kč | D11: =VolnáÚtrata[[#This Row],[Roční ]]/12 -> 100.00 Kč
B12: Úpravy domácnosti | C12: 19,200.00 Kč | D12: =VolnáÚtrata[[#This Row],[Roční ]]/12 -> 1,600.00 Kč
B13: Ostatní 1 | D13: =VolnáÚtrata[[#This Row],[Roční ]]/12 -> 0.00 Kč
B14: Ostatní 2 | D14: =VolnáÚtrata[[#This Row],[Roční ]]/12 -> 0.00 Kč
B15: Celkem | C15: =SUBTOTAL(109,VolnáÚtrata[[Roční ]]) -> 53,000.00 Kč | D15: =SUBTOTAL(109,VolnáÚtrata[[Měsíční ]]) -> 4,416.67 Kč

Sheet Úspory
B1: OSOBNÍ FINANČNÍ TOK | F1: PRŮVODCE | G1: VOLNÁ ÚTRATA | H1: ÚSPORY
B2: Celkový finanční tok k datu: | D2: =RočníFinančníTokKDatu -> 159,000.00 Kč | F2: Toto je roční odhad. Na tomto listu si můžete zjistit roční částky a odhadované měsíční částky. Pokud chcete do tabulky přidat denní položky, odhadněte jejich roční částku nebo hodnotu, kterou pak zadejte do sloupce Roční.
B3: Úspory | C3: Roční | D3: Měsíční
B4: Hotovostní rezerva | C4: 20,000.00 Kč | D4: =Úspory[[#This Row],[Roční ]]/12 -> 1,666.67 Kč
B5: Spoření (penzijní atd.) | C5: 48,000.00 Kč | D5: =Úspory[[#This Row],[Roční ]]/12 -> 4,000.00 Kč
B6: Úspory/investice | C6: 24,000.00 Kč | D6: =Úspory[[#This Row],[Roční ]]/12 -> 2,000.00 Kč
B7: Ostatní 1 | D7: =Úspory[[#This Row],[Roční ]]/12 -> 0.00 Kč
B8: Ostatní 2 | D8: =Úspory[[#This Row],[Roční ]]/12 -> 0.00 Kč
B9: Celkem | C9: =SUBTOTAL(109,Úspory[[Roční ]]) -> 92,000.00 Kč | D9: =SUBTOTAL(109,Úspory[[Měsíční ]]) -> 7,666.67 Kč
